bitfinex/quotes_BTCUSD_20250224
["timestamp","ask_amount","ask_price","bid_price","bid_amount"]
[1740359847358,0.15565,96370.0,96360.0,0.01454085]
[1740359847535,0.00097904,96371.0,96362.0,0.01454085]
[1740359847738,0.00097904,96371.0,96366.0,0.01454085]
[1740359847937,0.00097904,96371.0,96368.0,0.01454085]
[1740359848147,0.00097904,96371.0,96370.0,0.01454085]
[1740359848350,0.00097904,96371.0,96370.0,0.11718654]
[1740359848581,0.00097904,96371.0,96370.0,0.12466803]
[1740359850243,0.00097904,96371.0,96370.0,0.13166803]
[1740359851230,0.15662704,96371.0,96370.0,0.13166803]
[1740359851566,0.15662704,96371.0,96370.0,0.007]
[1740359851982,0.00097904,96371.0,96370.0,0.007]
[1740359852588,0.15662704,96371.0,96370.0,0.007]
[1740359852774,0.15662704,96371.0,96368.0,0.0017]
[1740359852974,0.00097904,96371.0,96368.0,0.0017]
[1740359853179,0.00097904,96371.0,96370.0,0.007]
[1740359854675,0.207517,96378.0,96370.0,0.007]
[1740359854878,0.155647,96372.0,96370.0,0.007]
[1740359855471,0.15565,96370.0,96368.0,0.0017]
[1740359855649,0.207528,96373.0,96368.0,0.0017]
[1740359856022,0.207518,96377.0,96368.0,0.0017]
[1740359856152,0.155649,96371.0,96368.0,0.0017]
[1740359856355,0.155647,96372.0,96370.0,0.007]
[1740359856583,0.15565,96370.0,96368.0,0.0017]
[1740359856958,0.15565,96370.0,96368.0,0.0087]
[1740359857156,0.155651,96370.0,96368.0,0.0017]
[1740359859246,0.155651,96370.0,96368.0,0.0087]
[1740359859384,0.155651,96370.0,96368.0,0.0017]
[1740359859805,0.155651,96370.0,96368.0,0.0087]
[1740359860013,0.155651,96369.0,96368.0,0.0087]
[1740359862492,0.155651,96369.0,96368.0,0.0017]
[1740359862854,0.155651,96369.0,96368.0,0.0087]
[1740359863474,0.00085,96371.0,96368.0,0.0087]
[1740359863679,0.156498,96371.0,96368.0,0.0087]
[1740359863894,0.00085,96371.0,96369.0,0.19568654]
[1740359864023,0.00085,96371.0,96370.0,0.15565]
[1740359864240,0.00085,96371.0,96370.0,0.28031812]
[1740359864457,0.00085,96371.0,96370.0,0.12466812]
[1740359864663,0.00085,96371.0,96370.0,0.28031812]
[1740359865072,0.00085,96371.0,96370.0,0.17396812]
[1740359866281,0.00085,96371.0,96370.0,0.18096812]
[1740359866689,0.00085,96371.0,96370.0,0.17396812]
[1740359866947,0.00085,96371.0,96370.0,0.18096812]
[1740359869768,0.00085,96371.0,96370.0,0.17396812]
[1740359869975,0.00085,96371.0,96370.0,0.18096812]
[1740359874443,0.00085,96371.0,96370.0,0.33661812]
[1740359874785,0.00085,96371.0,96370.0,0.72439937]
[1740359875240,0.00085,96371.0,96370.0,0.73309917]
[1740359875413,0.00085,96371.0,96370.0,0.72609917]
[1740359875633,0.00085,96371.0,96370.0,0.73309917]
[1740359876183,0.00085,96371.0,96370.0,0.72609917]
[1740359876347,0.00085,96371.0,96370.0,0.73309917]
[1740359876551,0.00085,96371.0,96370.0,0.73259543]
[1740359876963,0.00085,96371.0,96370.0,0.73959543]
[1740359877579,0.00085,96371.0,96370.0,0.75466458]
[1740359877778,0.00085,96371.0,96370.0,0.73959543]
[1740359878697,0.00085,96371.0,96370.0,0.73259543]
[1740359878937,0.00085,96371.0,96370.0,0.73959543]
[1740359879271,0.00085,96371.0,96370.0,0.73259543]
[1740359880070,0.00085,96371.0,96370.0,0.73309917]
[1740359880200,0.00085,96371.0,96370.0,0.72609917]
[1740359880640,0.00085,96371.0,96370.0,0.73309917]
[1740359881430,0.00085,96371.0,96370.0,0.73959543]
[1740359884613,0.00085,96371.0,96370.0,0.58394543]
[1740359884819,0.00085,96371.0,96370.0,0.52010458]
[1740359885025,0.00085,96371.0,96370.0,0.44170458]
[1740359885521,0.00085,96371.0,96370.0,0.45624543]
[1740359885724,0.00085,96371.0,96370.0,0.45846264]
[1740359885862,0.00085,96371.0,96370.0,0.43692179]
[1740359886062,0.00085,96371.0,96370.0,0.45196638]
[1740359886266,0.01594183,96371.0,96370.0,0.45196638]
[1740359886470,0.01594183,96371.0,96370.0,0.13558513]
[1740359888424,0.01594183,96371.0,96370.0,0.14335475]
[1740359890272,0.17158983,96371.0,96370.0,0.14335475]
[1740359890464,0.01594183,96371.0,96370.0,0.14335475]
[1740359890875,0.17158983,96371.0,96370.0,0.14335475]
[1740359891075,0.01594183,96371.0,96370.0,0.14335475]
[1740359891236,0.17158983,96371.0,96370.0,0.14335475]
[1740359891632,0.01594183,96371.0,96370.0,0.14335475]
[1740359891959,0.01594183,96371.0,96370.0,0.146603]
[1740359892566,0.17158983,96371.0,96370.0,0.146603]
[1740359892759,0.01594183,96371.0,96370.0,0.146603]
[1740359895198,0.00085,96371.0,96370.0,0.146603]
[1740359895405,0.00085,96371.0,96370.0,0.302253]
[1740359895831,0.00085,96371.0,96370.0,0.39644323]
[1740359896049,0.00085,96371.0,96370.0,0.381453]
[1740359898335,0.00085,96371.0,96370.0,0.69783425]
[1740359901032,0.00085,96371.0,96370.0,0.70433051]
[1740359906236,0.00085,96371.0,96370.0,0.75263051]
[1740359913377,0.00085,96371.0,96370.0,0.77206215]
[1740359914065,0.01155017,96389.0,96385.0,0.155625]
[1740359914288,0.0017014,96391.0,96386.0,0.11718654]
[1740359914491,0.0017014,96391.0,96386.0,0.12688047]
[1740359915929,0.0017014,96391.0,96386.0,0.13188047]
[1740359916150,0.01555982,96390.0,96386.0,0.13188047]
[1740359916380,0.0017008,96390.0,96388.0,0.01454085]
[1740359916618,0.0017008,96390.0,96389.0,0.10264569]
[1740359916883,0.0017008,96390.0,96389.0,0.11233785]
[1740359917540,0.0017008,96390.0,96389.0,0.13953911]
[1740359918469,0.0017008,96390.0,96389.0,0.14278736]
[1740359918703,0.0017008,96390.0,96389.0,0.14978736]
[1740359919234,0.01571976,96390.0,96389.0,0.14978736]
[1740359919481,0.0017008,96390.0,96389.0,0.14978736]
[1740359921339,0.01568296,96390.0,96389.0,0.16432821]
[1740359923546,0.17129996,96390.0,96389.0,0.16432821]
[1740359926716,0.17129996,96390.0,96389.0,0.15463605]
[1740359926990,0.17129996,96390.0,96389.0,0.16433184]
[1740359928701,0.24829996,96390.0,96389.0,0.0471453]
[1740359929105,0.24829996,96390.0,96389.0,0.03744951]
[1740359930451,0.24829996,96390.0,96389.0,0.02967989]
[1740359930652,0.24829996,96390.0,96389.0,0.02643164]
[1740359930874,0.09243653,96390.0,96374.0,0.01454085]
[1740359931080,0.155631,96382.0,96381.0,0.01454085]
[1740359931278,0.09243653,96390.0,96381.0,0.01454085]
[1740359931483,0.01543653,96390.0,96383.0,0.01454085]
[1740359931706,0.01543653,96390.0,96389.0,0.01454085]
[1740359931889,0.00145437,96390.0,96389.0,0.27280554]
[1740359932120,0.00145437,96390.0,96389.0,0.12688233]
[1740359932737,0.00145437,96390.0,96389.0,0.28250133]
[1740359933531,0.00145437,96390.0,96389.0,0.29094509]
[1740359933728,0.00145437,96390.0,96389.0,0.29872823]
[1740359933933,0.00145437,96390.0,96389.0,0.32488838]
[1740359934162,0.00145437,96390.0,96389.0,0.16426938]
[1740359934480,0.00145437,96390.0,96389.0,0.32688838]
[1740359934680,0.00145437,96390.0,96389.0,0.17126938]
[1740359935761,0.00145437,96390.0,96389.0,0.32688838]
[1740359945523,0.00145437,96390.0,96389.0,0.17126938]
[1740359945931,0.00145437,96390.0,96389.0,0.48765063]
[1740359947146,0.00145437,96390.0,96389.0,0.72126963]
[1740359947917,0.00145437,96390.0,96389.0,0.7160737]
[1740359949702,0.00145437,96390.0,96389.0,0.4824547]
[1740359953303,0.15707137,96390.0,96389.0,0.4824547]
[1740359953506,0.00145437,96390.0,96389.0,0.4824547]
[1740359953927,0.00145437,96390.0,96389.0,0.36526816]
[1740359953928,0.15707137,96390.0,96389.0,0.36526816]
[1740359955070,0.15707137,96390.0,96389.0,0.35748502]
[1740359956239,0.15707137,96390.0,96389.0,0.35048502]
[1740359956636,0.15707137,96390.0,96389.0,0.35323719]
[1740359956792,0.15707137,96390.0,96389.0,0.34723719]
[1740359957343,0.15707137,96390.0,96389.0,0.35323719]
[1740359957751,0.15707137,96390.0,96389.0,0.03685594]
[1740359957952,0.15707137,96390.0,96389.0,0.02716015]
[1740359958705,0.24037137,96390.0,96389.0,0.02716015]
[1740359959444,0.24037137,96390.0,96389.0,0.02116015]
[1740359959659,0.24037137,96390.0,96389.0,0.02416015]
[1740359960203,0.15707137,96390.0,96389.0,0.02116015]
[1740359960414,0.15707137,96390.0,96389.0,0.02416015]
[1740359960748,0.15707137,96390.0,96389.0,0.0046996]
[1740359962405,0.15707137,96390.0,96389.0,0.0016996]
[1740359962785,0.15707137,96390.0,96389.0,0.0056996]
[1740359966699,0.23507137,96390.0,96389.0,0.0056996]
[1740359967098,0.23507137,96390.0,96389.0,0.0016996]
[1740359967411,0.23507137,96390.0,96389.0,0.0046996]
[1740359967633,0.23507137,96390.0,96389.0,0.0016996]
[1740359967921,0.23507137,96390.0,96389.0,0.0046996]
[1740359969238,0.23507137,96390.0,96389.0,0.0016996]
[1740359969468,0.23507137,96390.0,96389.0,0.0046996]
[1740359974197,0.38507137,96390.0,96389.0,0.0046996]
[1740359975003,0.53474137,96390.0,96389.0,0.0046996]
[1740359976621,0.53474137,96390.0,96389.0,0.0016996]
[1740359976790,0.53474137,96390.0,96389.0,0.0026996]
[1740359976992,0.53474137,96390.0,96389.0,0.0016996]
[1740359977200,0.53474137,96390.0,96389.0,0.0026996]
[1740359977579,0.53474137,96390.0,96389.0,0.0016996]
[1740359977781,0.53474137,96390.0,96389.0,0.0026996]
[1740359977986,0.38507137,96390.0,96389.0,0.0026996]
[1740359978356,0.30707137,96390.0,96389.0,0.0026996]
[1740359979556,0.30707137,96390.0,96389.0,0.0016996]
[1740359979837,0.30707137,96390.0,96389.0,0.0026996]
[1740359980034,0.30707137,96390.0,96389.0,0.0016996]
[1740359980480,0.30707137,96390.0,96389.0,0.0026996]
[1740359980658,0.49544637,96390.0,96389.0,0.0026996]
[1740359981087,0.57234637,96390.0,96389.0,0.0026996]
[1740359981309,0.80723687,96390.0,96389.0,0.0026996]
[1740359981512,0.70769535,96390.0,96389.0,0.0026996]
[1740359981709,0.15,96389.0,96370.0,0.0016998]
[1740359981935,0.382548,96371.0,96370.0,0.0016998]
[1740359982749,1.177552,96371.0,96370.0,0.0016998]
[1740359982950,1.003416,96371.0,96370.0,0.0016998]
[1740359983554,1.003416,96371.0,96370.0,0.0036998]
[1740359984123,0.906416,96371.0,96370.0,0.0036998]
[1740359984343,0.878366,96371.0,96370.0,0.0036998]
[1740359986084,0.709375,96371.0,96370.0,0.0036998]
[1740359986296,0.470223,96371.0,96370.0,0.0036998]
[1740359986500,0.495987,96371.0,96370.0,0.0036998]
[1740359986940,0.305648,96371.0,96370.0,0.0036998]
[1740359987140,0.567987,96371.0,96370.0,0.0036998]
[1740359990268,0.57585147,96371.0,96370.0,0.0036998]
[1740360001834,0.50573247,96371.0,96370.0,0.0036998]
[1740360002393,0.47513247,96371.0,96370.0,0.0036998]
[1740360003173,0.57777816,96371.0,96370.0,0.0036998]
[1740360003392,0.70497816,96371.0,96370.0,0.0036998]
[1740360004476,0.70797816,96371.0,96370.0,0.0036998]
[1740360004954,0.60533247,96371.0,96370.0,0.0016998]
[1740360006380,0.60633247,96371.0,96370.0,0.0016998]
[1740360007970,0.44471247,96371.0,96370.0,0.0016998]
[1740360008166,1.78052447,96371.0,96370.0,0.0016998]
[1740360008347,1.88451647,96371.0,96370.0,0.0016998]
[1740360008711,1.88451647,96371.0,96370.0,0.0012998]
[1740360009269,1.98716216,96371.0,96370.0,0.0012998]
[1740360009675,1.86288247,96371.0,96370.0,0.0012998]
[1740360009859,1.80862047,96371.0,96370.0,0.0012998]
[1740360010803,1.81278147,96371.0,96370.0,0.0012998]
[1740360011765,0.31751247,96371.0,96370.0,0.0012998]
[1740360012188,0.16186447,96371.0,96370.0,0.0012998]
[1740360012388,0.16186447,96371.0,96370.0,0.0802998]
[1740360012593,0.004,96371.0,96370.0,0.0802998]
[1740360012765,0.004,96371.0,96370.0,0.09004821]
[1740360013193,0.001,96371.0,96370.0,0.09004821]
[1740360013374,0.001,96371.0,96370.0,0.0822998]
[1740360013974,0.16329458,96372.0,96370.0,0.0802998]
[1740360014176,0.00764758,96372.0,96370.0,0.09804821]
[1740360014501,0.00764758,96372.0,96370.0,0.09404821]
[1740360014502,0.16329458,96372.0,96370.0,0.09404821]
[1740360014833,0.00764758,96372.0,96370.0,0.0892998]
[1740360015021,0.00764758,96372.0,96371.0,0.00974782]
[1740360015741,0.00764758,96372.0,96370.0,0.0802998]
[1740360015938,0.16329458,96372.0,96370.0,0.0832998]
[1740360016450,0.00764758,96372.0,96370.0,0.0802998]
[1740360016664,0.001701,96403.0,96372.0,0.0458]
[1740360016865,0.00764524,96386.0,96379.0,0.16575681]
[1740360017083,0.00089303,96389.0,96388.0,0.155621]
[1740360017286,0.00089303,96389.0,96388.0,0.34890754]
[1740360017486,0.00089303,96389.0,96388.0,0.35862497]
[1740360018419,0.00089303,96389.0,96388.0,0.36162497]
[1740360019016,0.00389303,96389.0,96388.0,0.36162497]
[1740360019209,0.00389303,96389.0,96388.0,0.41638828]
[1740360019381,0.00089303,96389.0,96388.0,0.41638828]
[1740360019593,0.00089303,96389.0,96388.0,0.41338828]
[1740360019790,0.00189303,96389.0,96388.0,0.42263571]
[1740360020028,0.00189303,96389.0,96388.0,0.42963571]
[1740360020231,0.00089303,96389.0,96388.0,0.42363571]
[1740360020702,0.00189303,96389.0,96388.0,0.42363571]
[1740360021077,0.00189303,96389.0,96388.0,0.43063571]
[1740360022919,0.00189303,96389.0,96388.0,0.4228724]
[1740360023252,0.00189303,96389.0,96388.0,0.73925365]
[1740360024972,0.00189303,96389.0,96388.0,0.74701696]
[1740360026326,0.00189303,96389.0,96388.0,0.73600622]
[1740360030667,0.00189303,96389.0,96388.0,0.74372886]
[1740360031777,0.00189303,96389.0,96388.0,0.73600622]
[1740360032626,0.00189303,96389.0,96388.0,0.74392622]
[1740360036388,0.00189303,96389.0,96388.0,0.75165229]
[1740360040290,0.00189303,96389.0,96388.0,0.58811129]
[1740360040733,0.15751203,96389.0,96388.0,0.45047044]
[1740360040937,0.15751203,96389.0,96388.0,0.13408919]
[1740360041590,0.00089303,96389.0,96388.0,0.12708919]
[1740360041770,0.00089303,96389.0,96388.0,0.20588919]
[1740360041919,0.00089303,96389.0,96388.0,0.36151019]
[1740360042726,0.00089303,96389.0,96388.0,0.37605104]
[1740360042930,0.00089303,96389.0,96388.0,0.41815104]
[1740360043925,0.00089303,96389.0,96388.0,0.41115104]
[1740360044397,0.00089303,96389.0,96388.0,0.41815104]
[1740360044579,0.00189303,96389.0,96388.0,0.41715104]
[1740360044779,0.00189303,96389.0,96388.0,0.42415104]
[1740360044936,0.00089303,96389.0,96388.0,0.41815104]
[1740360045172,0.00089303,96389.0,96388.0,0.42515104]
[1740360045390,0.00189303,96389.0,96388.0,0.42515104]
[1740360046847,0.00189303,96389.0,96388.0,0.74153229]
[1740360047673,0.0017004,96396.0,96388.0,0.59383129]
[1740360047875,0.0017004,96396.0,96395.0,0.17014985]
[1740360048119,0.0017004,96396.0,96395.0,0.28034526]
[1740360048321,0.0017004,96396.0,96395.0,0.12473626]
[1740360048697,0.0017004,96396.0,96395.0,0.28034526]
[1740360048948,0.0027004,96396.0,96395.0,0.28034526]
[1740360049330,0.0017004,96396.0,96395.0,0.28034526]
[1740360049503,0.0017004,96396.0,96395.0,0.28807133]
[1740360050791,0.0017004,96396.0,96395.0,0.29507133]
[1740360051200,0.0017004,96396.0,96395.0,0.14646233]
[1740360051400,0.0027004,96396.0,96395.0,0.14646233]
[1740360053505,0.0027004,96396.0,96395.0,0.30207133]
[1740360053914,0.0027004,96396.0,96395.0,0.38107133]
[1740360054119,0.0027004,96396.0,96395.0,0.69745258]
[1740360054622,0.0027004,96396.0,96395.0,1.03348313]
[1740360054822,0.0027004,96396.0,96395.0,1.20348313]
[1740360055236,0.0027004,96396.0,96395.0,1.22348313]
[1740360055446,0.0017004,96396.0,96395.0,1.20948313]
[1740360055863,0.0027004,96396.0,96395.0,1.22348313]
[1740360056353,4e-07,96396.0,96395.0,1.22348313]
[1740360056641,0.0017014,96402.0,96401.0,0.48714085]
[1740360056912,0.0017004,96405.0,96403.0,0.345596]
[1740360057168,0.0017008,96411.0,96408.0,0.452588]
[1740360057594,0.0017008,96411.0,96408.0,1.14105579]
[1740360057595,0.0017008,96411.0,96408.0,1.19348634]
[1740360057882,0.0016996,96452.0,96448.0,0.17006485]
[1740360058128,0.0016996,96452.0,96448.0,0.44107693]
[1740360058354,0.00218875,96449.0,96448.0,0.44107693]
[1740360059111,0.00218875,96449.0,96448.0,0.44407693]
[1740360059371,0.00218875,96449.0,96448.0,0.44107693]
[1740360059896,0.00218875,96449.0,96448.0,0.448803]
[1740360060910,0.00218875,96449.0,96448.0,0.451803]
[1740360061120,0.00218875,96449.0,96448.0,0.448803]
[1740360061324,0.00218875,96449.0,96448.0,0.936603]
[1740360061894,0.00218875,96449.0,96448.0,0.939603]
[1740360062240,0.00218875,96449.0,96448.0,0.936603]
[1740360062468,0.00218875,96449.0,96448.0,0.945523]
[1740360062581,0.00218875,96449.0,96448.0,0.794603]
[1740360062784,0.00218875,96449.0,96448.0,0.711703]
[1740360063007,0.00218875,96449.0,96448.0,0.710703]
[1740360063245,0.00218875,96449.0,96448.0,0.717703]
[1740360063792,0.00218875,96449.0,96448.0,0.703703]
[1740360064280,0.00218875,96449.0,96448.0,0.717703]
[1740360064597,0.00218875,96449.0,96448.0,0.455803]
[1740360064796,0.00218875,96449.0,96448.0,0.462803]
[1740360065773,0.00218875,96449.0,96448.0,0.45507693]
[1740360070090,0.00218875,96449.0,96448.0,0.61060093]
[1740360070923,0.00218875,96449.0,96448.0,0.45507693]
[1740360071130,0.00218875,96449.0,96448.0,0.44053608]
[1740360072858,0.00218875,96449.0,96448.0,0.59606008]
[1740360073920,0.00218875,96449.0,96448.0,0.61060093]
[1740360074323,0.00218875,96449.0,96448.0,0.73400093]
[1740360075075,0.00218875,96449.0,96448.0,0.88400093]
[1740360076724,0.00218875,96449.0,96448.0,0.89171815]
[1740360081565,0.00218875,96449.0,96448.0,0.69341815]
[1740360081754,0.00218875,96449.0,96448.0,0.62619815]
[1740360083346,0.00218875,96449.0,96448.0,0.61831815]
[1740360084831,0.00218875,96449.0,96448.0,0.76831815]
[1740360085445,0.207307,96475.0,96463.0,0.155499]
[1740360085651,0.00127909,96472.0,96464.0,0.11718654]
[1740360085855,0.15676409,96472.0,96464.0,0.11718654]
[1740360086011,0.00127909,96472.0,96465.0,0.0090614]
[1740360086219,0.00127909,96472.0,96466.0,0.10264569]
[1740360086742,0.00127909,96472.0,96467.0,0.0090605]
[1740360086916,0.00127909,96472.0,96468.0,0.10264569]
[1740360087162,0.00127909,96472.0,96469.0,0.0090596]
[1740360087369,0.00127909,96472.0,96470.0,0.10264569]
[1740360087717,0.00127909,96472.0,96471.0,0.0090587]
[1740360087921,0.00127909,96472.0,96471.0,0.11170439]
[1740360088688,0.00127909,96472.0,96471.0,0.11942161]
[1740360088889,0.15676409,96472.0,96471.0,0.11942161]
[1740360089134,0.15676409,96472.0,96471.0,0.12342161]
[1740360089384,0.15676409,96472.0,96471.0,0.12542161]
[1740360089804,0.23456409,96472.0,96471.0,0.02277592]
[1740360090224,0.23456409,96472.0,96471.0,0.01371722]
[1740360090599,0.27966409,96472.0,96471.0,0.01371722]
[1740360090803,0.27966409,96472.0,96471.0,0.01171722]
[1740360090946,0.27966409,96472.0,96471.0,0.00971722]
[1740360091333,0.27966409,96472.0,96471.0,0.01171722]
[1740360091464,0.27966409,96472.0,96471.0,0.00771722]
[1740360091896,0.27966409,96472.0,96471.0,0.00971722]
[1740360092134,0.27966409,96472.0,96471.0,0.00771722]
[1740360092346,0.27966409,96472.0,96453.0,0.31638125]
[1740360092347,0.207321,96469.0,96453.0,0.31638125]
[1740360092574,0.207321,96469.0,96454.0,0.10264569]
[1740360092799,0.155503,96461.0,96454.0,0.11170219]
[1740360093025,0.12417909,96472.0,96454.0,0.11170219]
[1740360093258,0.207318,96470.0,96454.0,0.11170219]
[1740360093471,0.12417909,96472.0,96454.0,0.11170219]
[1740360093698,0.12417909,96472.0,96455.0,0.00776716]
[1740360093937,0.155502,96462.0,96456.0,0.10264569]
[1740360094153,0.12417909,96472.0,96456.0,0.11170129]
[1740360094154,0.155498,96464.0,96456.0,0.11170129]
[1740360094406,0.12417909,96472.0,96471.0,0.003]
[1740360094605,0.27966409,96472.0,96471.0,0.003]
[1740360094821,0.155498,96464.0,96456.0,0.10264569]
[1740360095028,0.155498,96464.0,96456.0,0.10964569]
[1740360095228,0.155498,96464.0,96456.0,0.10264569]
[1740360095455,0.12417909,96472.0,96456.0,0.10664569]
[1740360095696,0.155502,96462.0,96456.0,0.10664569]
[1740360095947,0.155496,96465.0,96456.0,0.10664569]
[1740360096593,0.207326,96467.0,96457.0,0.007767]
[1740360096854,0.155508,96459.0,96458.0,0.10264569]
[1740360097366,0.155508,96459.0,96457.0,0.007767]
[1740360097367,0.155508,96458.0,96457.0,0.007767]
[1740360097595,0.155508,96458.0,96457.0,0.11041269]
[1740360098063,0.155508,96458.0,96457.0,0.007767]
[1740360098326,0.155524,96448.0,96447.0,0.03104179]
[1740360098551,0.155524,96448.0,96447.0,0.13368748]
[1740360099033,0.155524,96448.0,96447.0,0.11106814]
[1740360099263,0.155524,96448.0,96447.0,0.10264569]
[1740360100467,0.155524,96448.0,96447.0,0.10664569]
[1740360101159,0.155524,96448.0,96447.0,0.11264569]
[1740360101370,0.155524,96448.0,96447.0,0.01]
[1740360103340,0.145524,96448.0,96447.0,0.01]
[1740360106325,0.145524,96448.0,96447.0,0.006]
[1740360108317,0.0492,96452.0,96434.0,0.31638125]
[1740360108532,0.155545,96435.0,96434.0,0.31638125]
[1740360109147,0.207387,96438.0,96434.0,0.31638125]
[1740360109350,0.155542,96437.0,96434.0,0.31638125]
[1740360109711,0.207383,96440.0,96435.0,0.10264569]
[1740360109920,0.155542,96437.0,96435.0,0.10264569]
[1740360111014,0.01499975,96440.0,96436.0,0.0824]
[1740360111216,0.0008496,96448.0,96437.0,0.10264569]
[1740360111631,0.207367,96447.0,96437.0,0.10264569]
[1740360111832,0.155537,96440.0,96437.0,0.10264569]
[1740360112099,0.155535,96441.0,96437.0,0.10264569]
[1740360112259,0.01509173,96440.0,96437.0,0.10264569]
[1740360112451,0.155534,96442.0,96437.0,0.10564569]
[1740360112917,0.01516101,96442.0,96437.0,0.10264569]
[1740360113325,0.1563736,96448.0,96437.0,0.10264569]
[1740360113559,0.0008496,96448.0,96437.0,0.10264569]
[1740360113771,0.1563736,96448.0,96437.0,0.10464569]
[1740360113975,0.155525,96447.0,96437.0,0.10464569]
[1740360114157,0.155529,96445.0,96437.0,0.10964569]
[1740360114374,0.155529,96445.0,96437.0,0.10764569]
[1740360114519,0.155529,96445.0,96437.0,0.10264569]
[1740360114731,0.155529,96445.0,96437.0,0.10564569]
[1740360115158,0.155529,96445.0,96437.0,0.10264569]
[1740360115351,0.207367,96447.0,96437.0,0.10664569]
[1740360115544,0.01603622,96448.0,96437.0,0.10664569]
[1740360115985,0.155525,96447.0,96437.0,0.10764569]
[1740360116194,0.155528,96446.0,96437.0,0.10364569]
[1740360116397,0.01603622,96448.0,96437.0,0.10364569]
[1740360116596,0.01603622,96448.0,96437.0,0.10264569]
[1740360116819,0.155527,96446.0,96437.0,0.10264569]
[1740360117246,0.155525,96447.0,96437.0,0.10264569]
[1740360117452,0.01603622,96448.0,96437.0,0.10264569]
[1740360117673,0.01603622,96448.0,96437.0,0.10564569]
[1740360117884,0.22340122,96448.0,96437.0,0.10564569]
[1740360118514,0.22340122,96448.0,96437.0,0.10264569]
[1740360118716,0.22340122,96448.0,96437.0,0.10564569]
[1740360119062,0.207367,96447.0,96437.0,0.10264569]
[1740360119316,0.15553,96445.0,96437.0,0.10564569]
[1740360119492,0.15553,96444.0,96437.0,0.10564569]
[1740360119693,0.15553,96444.0,96437.0,0.10664569]
[1740360120069,0.01603622,96448.0,96437.0,0.10664569]
[1740360120256,0.155531,96444.0,96437.0,0.10564569]
[1740360120450,0.15554,96438.0,96437.0,0.10564569]
[1740360120657,0.15554,96438.0,96437.0,0.10464569]
[1740360121095,0.15554,96438.0,96437.0,0.006]
[1740360121302,0.15554,96438.0,96437.0,0.002]
[1740360121707,0.15554,96438.0,96437.0,0.008]
[1740360121907,0.15554,96438.0,96437.0,0.002]
[1740360122119,0.155545,96435.0,96434.0,8.915e-05]
[1740360124079,0.387745,96435.0,96434.0,8.915e-05]
[1740360124483,2.059192,96435.0,96434.0,0.00308915]
[1740360124717,1.677234,96435.0,96434.0,0.00308915]
[1740360124929,1.444969,96435.0,96434.0,8.915e-05]
[1740360125486,1.409299,96435.0,96434.0,8.915e-05]
[1740360125684,1.373828,96435.0,96434.0,8.915e-05]
[1740360125923,1.238597,96435.0,96434.0,8.915e-05]
[1740360126265,1.237597,96435.0,96434.0,8.915e-05]
[1740360126471,1.239597,96435.0,96434.0,8.915e-05]
[1740360127632,1.223386,96435.0,96434.0,8.915e-05]
[1740360127836,0.955364,96435.0,96434.0,8.915e-05]
[1740360128604,0.545959,96435.0,96434.0,8.915e-05]
[1740360129642,0.543959,96435.0,96434.0,8.915e-05]
[1740360129847,0.545959,96435.0,96434.0,8.915e-05]
[1740360130229,0.543959,96435.0,96434.0,8.915e-05]
[1740360131636,0.545959,96435.0,96434.0,8.915e-05]
[1740360133563,0.543959,96435.0,96434.0,8.915e-05]
[1740360134400,0.543959,96435.0,96434.0,0.00178915]
[1740360134822,0.545959,96435.0,96434.0,0.00178915]
[1740360135138,0.543959,96435.0,96434.0,0.00178915]
[1740360135538,0.545959,96435.0,96434.0,0.00178915]
[1740360135748,0.463759,96435.0,96434.0,0.00178915]
[1740360137887,0.46371296,96435.0,96434.0,0.00178915]
[1740360138837,0.59781745,96435.0,96434.0,0.00178915]
[1740360139044,0.155582,96412.0,96398.0,0.075]
[1740360139658,0.155582,96412.0,96399.0,0.00776143]
[1740360140701,0.305582,96412.0,96399.0,0.00776143]
[1740360140910,0.305582,96412.0,96411.0,0.0036998]
[1740360141119,0.305582,96412.0,96411.0,0.0016998]
[1740360141120,0.306582,96412.0,96411.0,0.0016998]
[1740360141318,0.550116,96412.0,96411.0,0.0016998]
[1740360141621,0.549116,96412.0,96411.0,0.0016998]
[1740360141834,0.551116,96412.0,96411.0,0.0016998]
[1740360142427,0.549116,96412.0,96411.0,0.0016998]
[1740360142627,0.553116,96412.0,96411.0,0.0016998]
[1740360143043,0.56095548,96412.0,96411.0,0.0016998]
[1740360143245,0.45223248,96412.0,96411.0,0.0016998]
[1740360143447,0.31742148,96412.0,96411.0,0.0016998]
[1740360143658,0.51525048,96412.0,96411.0,0.0016998]
[1740360144093,0.51225048,96412.0,96411.0,0.0016998]
[1740360144298,0.51525048,96412.0,96411.0,0.0016998]
[1740360144951,0.51125048,96412.0,96411.0,0.0016998]
[1740360145134,0.51425048,96412.0,96411.0,0.0016998]
[1740360147537,0.47823948,96412.0,96411.0,0.0016998]
[1740360147760,0.47523948,96412.0,96411.0,0.0016998]
[1740360147933,0.47723948,96412.0,96411.0,0.0016998]
[1740360148291,0.42722348,96412.0,96411.0,0.0016998]
[1740360148500,0.31342148,96412.0,96411.0,0.0026998]
[1740360148695,0.31442148,96412.0,96411.0,0.0016998]
[1740360149088,0.31442148,96412.0,96411.0,0.0026998]
[1740360149293,0.43374748,96412.0,96411.0,0.0026998]
[1740360150130,0.43274748,96412.0,96411.0,0.0026998]
[1740360150583,0.43374748,96412.0,96411.0,0.0026998]
[1740360150886,0.43374748,96412.0,96411.0,0.0016998]
[1740360151097,0.43374748,96412.0,96411.0,0.0036998]
[1740360151273,0.43374748,96412.0,96411.0,0.0016998]
[1740360151767,0.43374748,96412.0,96411.0,0.0026998]
[1740360151965,0.50974748,96412.0,96411.0,0.0026998]
[1740360152891,0.39042148,96412.0,96411.0,0.0026998]
[1740360153102,2.21963048,96412.0,96411.0,0.0026998]
[1740360153239,2.17582748,96412.0,96411.0,0.0026998]
[1740360153449,1.97797648,96412.0,96411.0,0.0026998]
[1740360153699,1.97697648,96412.0,96411.0,0.0026998]
[1740360153906,1.98097648,96412.0,96411.0,0.0026998]
[1740360154421,1.98097648,96412.0,96411.0,0.0016998]
[1740360154757,1.98197648,96412.0,96411.0,0.0016998]
[1740360156428,2.04132678,96412.0,96411.0,8e-07]
[1740360156801,0.47002459,96412.0,96411.0,8e-07]
[1740360157033,0.34008318,96412.0,96411.0,8e-07]
[1740360158589,0.33908318,96412.0,96411.0,8e-07]
[1740360158798,0.32383037,96412.0,96411.0,8e-07]
[1740360159457,0.31983037,96412.0,96411.0,8e-07]
[1740360159771,0.46594371,96412.0,96411.0,8e-07]
[1740360160183,0.46194371,96412.0,96411.0,8e-07]
[1740360160385,0.46494371,96412.0,96411.0,8e-07]
[1740360160579,0.46394371,96412.0,96411.0,8e-07]
[1740360161029,0.36673037,96412.0,96411.0,8e-07]
[1740360161237,0.37073037,96412.0,96411.0,8e-07]